fUSD/lending_fUSD_20260628
["ID","MTS","AMOUNT","RATE_DAILY","PERIOD"]
[426587019,1782635755000,-486.53711282,0.00012827,2]
[426587017,1782635755000,-500.0,0.00012827,2]
[426587018,1782635755000,-500.0,0.00012827,2]
[426587020,1782635755000,-99.94089519,0.00012827,2]
[426587012,1782635755000,-300.66,0.00012668,2]
[426587022,1782635756000,-461.73192265,0.00012827,2]
[426587021,1782635756000,-400.05910481,0.00012827,2]
[426587024,1782635756000,-500.0,0.00012827,2]
[426587026,1782635756000,-500.0,0.00012827,2]
[426587023,1782635756000,-500.0,0.00012827,2]
[426587027,1782635756000,-500.0,0.00012827,2]
[426587028,1782635756000,-500.0,0.00012827,2]
[426587032,1782635756000,300.67,0.00011577,2]
[426587031,1782635756000,-299.07618446,0.00012827,2]
[426587025,1782635756000,-500.0,0.00012827,2]
[426587030,1782635756000,-339.13278808,0.00012827,2]
[426587029,1782635756000,-500.0,0.00012827,2]
[426587033,1782635757000,-300.67,0.00012796,2]
[426587035,1782635757000,-500.0,0.00012827,2]
[426587034,1782635757000,-200.92381554,0.00012827,2]
[426587037,1782635757000,-514.19431026,0.00012827,2]
[426587036,1782635757000,-500.0,0.00012827,2]
[426587040,1782635757000,-500.0,0.00012827,2]
[426587041,1782635757000,-500.0,0.00012827,2]
[426587042,1782635757000,-399.88250509,0.00012827,2]
[426587044,1782635757000,-182.95376102,0.00012827,2]
[426587043,1782635757000,-401.37560809,0.00012827,2]
[426587039,1782635757000,-500.0,0.00012827,2]
[426587038,1782635757000,-500.0,0.00012827,2]
[426587047,1782635762000,-4297.36542004,0.00012828,2]
[426587046,1782635762000,-385.58834098,0.00012827,2]
[426587045,1782635762000,-317.04623898,0.00012827,2]
[426587049,1782635787000,-1972.77970246,0.00012828,2]
[426587050,1782635812000,1183.06548017,0.00012827,3]
[426587051,1782635840000,-1921.08915545,0.00012828,2]
[426587052,1782635852000,-1972.77970246,0.00012828,2]
[426587053,1782635853000,-5000.0,0.00012828,2]
[426587054,1782635854000,-5000.0,0.00012828,2]
[426587055,1782635855000,-5000.0,0.00012828,2]
[426587056,1782635856000,-5000.0,0.00012828,2]
[426587057,1782635857000,-5000.0,0.00012828,2]
[426587059,1782635858000,-5000.0,0.00012828,2]
[426587058,1782635858000,-5000.0,0.00012828,2]
[426587060,1782635860000,-5000.0,0.00012828,2]
[426587061,1782635861000,-5000.0,0.00012828,2]
[426587062,1782635862000,-5000.0,0.00012828,2]
[426587063,1782635870000,200.0,0.0001283,7]
[426587064,1782635906000,-250.73874591,0.00012728,2]
[426587067,1782635947000,-856.35988593,0.00012728,2]
[426587065,1782635947000,-190.87932965,0.00012628,2]
[426587066,1782635947000,-1543.77259287,0.00012728,2]
[426587068,1782635948000,-2408.98819155,0.00012828,2]
[426587069,1782635959000,-2196.87261684,0.00012828,2]
[426587070,1782635972000,-2196.87261684,0.00012828,2]
[426587072,1782635984000,-5000.0,0.00012828,2]
[426587071,1782635984000,-267.05241939,0.00012828,2]
[426587073,1782635996000,-267.05241939,0.00012828,2]
[426587076,1782635996000,-5000.0,0.00012828,2]
[426587077,1782635996000,-5000.0,0.00012828,2]
[426587074,1782635996000,-5000.0,0.00012828,2]
[426587075,1782635996000,-5000.0,0.00012828,2]
[426587080,1782635996000,-5000.0,0.00012828,2]
[426587079,1782635996000,-5000.0,0.00012828,2]
[426587081,1782635996000,-5000.0,0.00012828,2]
[426587083,1782635996000,-5000.0,0.00012828,2]
[426587082,1782635996000,-5000.0,0.00012828,2]
[426587084,1782635996000,-5000.0,0.00012828,2]
[426587085,1782635996000,-5000.0,0.00012828,2]
[426587078,1782635996000,-5000.0,0.00012828,2]
[426587086,1782636008000,-523.37413143,0.00012828,2]
[426587089,1782636008000,-5000.0,0.00012828,2]
[426587087,1782636008000,-5000.0,0.00012828,2]
[426587091,1782636008000,-5000.0,0.00012828,2]
[426587090,1782636008000,-5000.0,0.00012828,2]
[426587092,1782636008000,-5000.0,0.00012828,2]
[426587088,1782636008000,-5000.0,0.00012828,2]
[426587093,1782636021000,-523.37413143,0.00012828,2]
[426587100,1782636113000,-3376.42057619,0.00012828,2]
[426587099,1782636113000,-160.0,0.00012827,2]
[426587098,1782636113000,-150.0,0.00012827,2]
[426587097,1782636113000,-160.0,0.00012827,2]
[426587096,1782636113000,-156.20390489,0.00012827,2]
[426587094,1782636113000,-824.64578105,0.00012728,2]
[426587095,1782636113000,-172.72973787,0.00012764,2]
[426587102,1782636143000,-500.0,0.00012827,2]
[426587101,1782636143000,-173.63588962,0.00012827,2]
[426587108,1782636144000,-1210.52867597,0.00012827,2]
[426587109,1782636144000,-472.53055871,0.00012827,2]
[426587107,1782636144000,-500.0,0.00012827,2]
[426587106,1782636144000,-643.3048757,0.00012827,2]
[426587103,1782636144000,-500.0,0.00012827,2]
[426587105,1782636144000,-500.0,0.00012827,2]
[426587104,1782636144000,-500.0,0.00012827,2]
[426587110,1782636145000,-737.99811726,0.00012827,2]
[426587111,1782636145000,-1210.52867597,0.00012827,2]
[426587113,1782636145000,-1210.52867597,0.00012827,2]
[426587114,1782636145000,-630.41585483,0.00012827,2]
[426587112,1782636145000,-1210.52867597,0.00012827,2]
[426587118,1782636146000,-1210.52867597,0.00012827,2]
[426587115,1782636146000,-580.11282114,0.00012827,2]
[426587117,1782636146000,-1210.52867597,0.00012827,2]
[426587116,1782636146000,-1210.52867597,0.00012827,2]
[426587124,1782636146000,-946.18644707,0.00012827,2]
[426587120,1782636146000,-422.22752502,0.00012827,2]
[426587121,1782636146000,-1210.52867597,0.00012827,2]
[426587122,1782636146000,-1210.52867597,0.00012827,2]
[426587123,1782636146000,-1210.52867597,0.00012827,2]
[426587119,1782636146000,-788.30115095,0.00012827,2]
[426587125,1782636147000,-264.3422289,0.00012827,2]
[426587127,1782636147000,-1210.52867597,0.00012827,2]
[426587129,1782636147000,-1104.07174319,0.00012827,2]
[426587128,1782636147000,-1210.52867597,0.00012827,2]
[426587126,1782636147000,-1210.52867597,0.00012827,2]
[426587135,1782636148000,-51.42836334,0.00012827,2]
[426587134,1782636148000,-1210.52867597,0.00012827,2]
[426587133,1782636148000,-1210.52867597,0.00012827,2]
[426587131,1782636148000,-1210.52867597,0.00012827,2]
[426587132,1782636148000,-1210.52867597,0.00012827,2]
[426587130,1782636148000,-106.45693278,0.00012827,2]
[426587136,1782636149000,-1159.10031263,0.00012827,2]
[426587138,1782636149000,-1210.52867597,0.00012827,2]
[426587140,1782636149000,-209.31365946,0.00012827,2]
[426587137,1782636149000,-1210.52867597,0.00012827,2]
[426587139,1782636149000,-1210.52867597,0.00012827,2]
[426587145,1782636150000,-367.19895558,0.00012827,2]
[426587142,1782636150000,-1210.52867597,0.00012827,2]
[426587143,1782636150000,-1210.52867597,0.00012827,2]
[426587141,1782636150000,-1001.21501651,0.00012827,2]
[426587144,1782636150000,-1210.52867597,0.00012827,2]
[426587147,1782636151000,-1210.52867597,0.00012827,2]
[426587146,1782636151000,-843.32972039,0.00012827,2]
[426587149,1782636151000,-1210.52867597,0.00012827,2]
[426587148,1782636151000,-1210.52867597,0.00012827,2]
[426587150,1782636151000,-525.0842517,0.00012827,2]
[426587155,1782636153000,-682.96954782,0.00012827,2]
[426587154,1782636153000,-1210.52867597,0.00012827,2]
[426587153,1782636153000,-1210.52867597,0.00012827,2]
[426587152,1782636153000,-1210.52867597,0.00012827,2]
[426587151,1782636153000,-685.44442427,0.00012827,2]
[426587160,1782636154000,-840.85484394,0.00012827,2]
[426587158,1782636154000,-1210.52867597,0.00012827,2]
[426587159,1782636154000,-1210.52867597,0.00012827,2]
[426587157,1782636154000,-1210.52867597,0.00012827,2]
[426587156,1782636154000,-527.55912815,0.00012827,2]
[426587164,1782636155000,-1210.52867597,0.00012827,2]
[426587161,1782636155000,-369.67383203,0.00012827,2]
[426587163,1782636155000,-1210.52867597,0.00012827,2]
[426587162,1782636155000,-1210.52867597,0.00012827,2]
[426587165,1782636155000,-998.74014006,0.00012827,2]
[426587170,1782636157000,-1156.62543618,0.00012827,2]
[426587168,1782636157000,-1210.52867597,0.00012827,2]
[426587169,1782636157000,-1210.52867597,0.00012827,2]
[426587166,1782636157000,-211.78853591,0.00012827,2]
[426587167,1782636157000,-1210.52867597,0.00012827,2]
[426587171,1782636217000,-437.94516519,0.00012827,2]
[426587173,1782636217000,-1150.00224217,0.00012827,2]
[426587172,1782636217000,-1150.00224217,0.00012827,2]
[426587175,1782636217000,-45.2190083,0.00012827,2]
[426587174,1782636217000,-1150.00224217,0.00012827,2]
[426587178,1782636284000,715.42,0.00031267,120]
[426587177,1782636284000,715.42,0.00028425,120]
[426587179,1782636339000,-721.56505841,0.00012728,2]
[426587181,1782636424000,-750.0,0.00012728,2]
[426587197,1782636426000,-500.0,0.00012824,2]
[426587196,1782636426000,-500.0,0.00012824,2]
[426587195,1782636426000,-500.0,0.00012824,2]
[426587191,1782636426000,-500.0,0.00012824,2]
[426587193,1782636426000,-500.0,0.00012824,2]
[426587194,1782636426000,-500.0,0.00012824,2]
[426587192,1782636426000,-500.0,0.00012824,2]
[426587190,1782636426000,-500.0,0.00012824,2]
[426587189,1782636426000,-500.0,0.00012824,2]
[426587187,1782636426000,-155.54250057,0.00012824,2]
[426587188,1782636426000,-500.0,0.00012824,2]
[426587186,1782636426000,-273.76479182,0.00012824,2]
[426587185,1782636426000,-500.0,0.00012824,2]
[426587183,1782636426000,-1615.06020492,0.00012728,2]
[426587184,1782636426000,-150.0,0.00012776,2]
[426587182,1782636426000,-20.72389731,0.00012728,2]
[426587198,1782636426000,-500.0,0.00012824,2]
[426587199,1782636426000,-500.0,0.00012824,2]
[426587211,1782636426000,-500.0,0.00012824,2]
[426587201,1782636426000,-500.0,0.00012824,2]
[426587217,1782636426000,-500.0,0.00012824,2]
[426587218,1782636426000,-500.0,0.00012824,2]
[426587216,1782636426000,-500.0,0.00012824,2]
[426587213,1782636426000,-500.0,0.00012824,2]
[426587215,1782636426000,-500.0,0.00012824,2]
[426587214,1782636426000,-500.0,0.00012824,2]
[426587212,1782636426000,-500.0,0.00012824,2]
[426587200,1782636426000,-593.52989376,0.00012824,2]
[426587209,1782636426000,-500.0,0.00012824,2]
[426587208,1782636426000,-500.0,0.00012824,2]
[426587205,1782636426000,-500.0,0.00012824,2]
[426587204,1782636426000,-500.0,0.00012824,2]
[426587207,1782636426000,-500.0,0.00012824,2]
[426587206,1782636426000,-500.0,0.00012824,2]
[426587203,1782636426000,-500.0,0.00012824,2]
[426587202,1782636426000,-500.0,0.00012824,2]
[426587210,1782636426000,-500.0,0.00012824,2]
[426587220,1782636427000,-500.0,0.00012824,2]
[426587219,1782636427000,-500.0,0.00012824,2]
[426587221,1782636427000,-127.2841236,0.00012824,2]
[426587229,1782636453000,-357.05944795,0.00012824,2]
[426587228,1782636453000,-614.87188942,0.00012824,2]
[426587226,1782636453000,-500.0,0.00012824,2]
[426587227,1782636453000,-614.87188942,0.00012824,2]
[426587225,1782636453000,-500.0,0.00012824,2]
[426587224,1782636453000,-500.0,0.00012824,2]
[426587222,1782636453000,-372.7158764,0.00012824,2]
[426587223,1782636453000,-500.0,0.00012824,2]
[426587230,1782636470000,200.0,0.00012186,2]
[426587232,1782636509000,-300.0,0.00012827,2]
[426587231,1782636509000,-250.0,0.00012827,2]
[426587233,1782636509000,-150.0,0.00012827,2]
[426587234,1782636512000,151.0,0.00012827,2]
[426587235,1782636535000,0.3,0.00012827,2]
[426587238,1782636546000,-502.27537697,0.00012827,2]
[426587237,1782636546000,-499.7,0.00012827,2]
[426587239,1782636546000,-500.0,0.00012827,2]
[426587236,1782636546000,-151.0,0.00012827,2]
[426587243,1782636546000,-150.0,0.00012828,2]
[426587240,1782636546000,-500.0,0.00012827,2]
[426587242,1782636546000,-250.0,0.00012828,2]
[426587241,1782636546000,-500.0,0.00012827,2]
[426587244,1782636546000,-29582.44562303,0.00012828,2]
[426587245,1782636550000,-3763.58302235,0.00012828,2]
[426587247,1782636563000,-37009.59698111,0.00012828,2]
[426587246,1782636563000,-3607.674196,0.00012828,2]
[426587249,1782636572000,288.00918157,0.00012827,2]
[426587248,1782636572000,-8878.935926,0.00012828,2]
[426587250,1782636573000,375.54081843,0.00012728,2]
[426587252,1782636588000,-3685.60550056,0.00012728,2]
[426587251,1782636588000,-3685.60550056,0.00012728,2]
[426587253,1782636588000,-546.4131664,0.00012728,2]
[426587272,1782636632000,-160.0,0.00012888,2]
[426587278,1782636632000,-150.0,0.00012955,2]
[426587274,1782636632000,-151.0,0.00012928,2]
[426587280,1782636632000,-300.66,0.00012988,2]
[426587283,1782636632000,-300.66,0.00013149,2]
[426587288,1782636632000,-150.0,0.00013468,2]
[426587293,1782636632000,-384.96058551,0.00013698,2]
[426587295,1782636632000,-799.36,0.00013699,2]
[426587282,1782636632000,-150.0,0.00013083,2]
[426587269,1782636632000,-300.66,0.00012828,2]
[426587286,1782636632000,-300.66,0.00013309,2]
[426587294,1782636632000,-500.0,0.00013698,2]
[426587267,1782636632000,-150.0,0.00012828,2]
[426587262,1782636632000,-117404.91523195,0.00012828,2]
[426587270,1782636632000,-250.0,0.00012853,2]
[426587268,1782636632000,-250.0,0.00012828,2]
[426587271,1782636632000,-160.0,0.00012878,2]
[426587266,1782636632000,-151.0,0.00012828,2]
[426587265,1782636632000,-153.0,0.00012828,2]
[426587263,1782636632000,-33633.73725942,0.00012828,2]
[426587264,1782636632000,-153.0,0.00012828,2]
[426587260,1782636632000,-5317.91030768,0.00012728,2]
[426587261,1782636632000,-122879.20275313,0.00012828,2]
[426587259,1782636632000,-1804.97286512,0.00012728,2]
[426587258,1782636632000,-375.12799992,0.00012728,2]
[426587257,1782636632000,-1112.23324133,0.00012728,2]
[426587287,1782636632000,-150.0,0.0001334,2]
[426587276,1782636632000,-151.0,0.00012928,2]
[426587290,1782636632000,-300.66,0.00013469,2]
[426587284,1782636632000,-150.0,0.00013212,2]
[426587292,1782636632000,-500.0,0.00013698,2]
[426587322,1782636632000,-500.0,0.00016438,2]
[426587321,1782636632000,-300.0,0.00016,2]
[426587320,1782636632000,-574.20583563,0.00015452,2]
[426587319,1782636632000,-1615.06020486,0.00015452,2]
[426587323,1782636632000,-500.0,0.00016438,2]
[426587318,1782636632000,-917.0,0.00015309,2]
[426587316,1782636632000,-910.0,0.00015309,2]
[426587291,1782636632000,-224.0,0.00013597,2]
[426587314,1782636632000,-151.0,0.00015309,2]
[426587315,1782636632000,-193.10523726,0.00015309,2]
[426587312,1782636632000,-150.0,0.00015309,2]
[426587309,1782636632000,-27309.20362709,0.00014511,2]
[426587317,1782636632000,-150.0,0.00015309,2]
[426587310,1782636632000,-500.0,0.00015209,2]
[426587313,1782636632000,-150.0,0.00015309,2]
[426587307,1782636632000,-250.0,0.00014111,2]
[426587311,1782636632000,-151.0,0.00015309,2]
[426587296,1782636632000,-150.99,0.00013699,2]
[426587300,1782636632000,-9999.99,0.00013699,2]
[426587301,1782636632000,-4999.99,0.00013699,2]
[426587305,1782636632000,-255.0,0.0001393,2]
[426587302,1782636632000,-299.99,0.00013699,2]
[426587297,1782636632000,-5710.52551064,0.00013699,2]
[426587304,1782636632000,-8991.81,0.00013699,2]
[426587298,1782636632000,-4289.46448936,0.00013699,2]
[426587303,1782636632000,-499.99,0.00013699,2]
[426587306,1782636632000,-250.0,0.00014,2]
[426587308,1782636632000,-631.3694261,0.00014404,2]
[426587299,1782636632000,-9999.99,0.00013699,2]
[426587364,1782636633000,-731.0,0.00017096,2]
[426587369,1782636633000,-199.5,0.00017776,2]
[426587372,1782636633000,-1615.06020486,0.00018176,2]
[426587368,1782636633000,-250.0,0.00017751,2]
[426587360,1782636633000,-249.43448772,0.00016438,2]
[426587354,1782636633000,-249.43448772,0.00016438,2]
[426587357,1782636633000,-249.43448772,0.00016438,2]
[426587359,1782636633000,-500.0,0.00016438,2]
[426587358,1782636633000,-500.0,0.00016438,2]
[426587356,1782636633000,-500.0,0.00016438,2]
[426587355,1782636633000,-500.0,0.00016438,2]
[426587361,1782636633000,-500.0,0.00017096,2]
[426587382,1782636633000,-161.0,0.0002,2]
[426587381,1782636633000,-273.0,0.0002,2]
[426587374,1782636633000,-179.03673055,0.00018612,2]
[426587366,1782636633000,-500.0,0.0001737,2]
[426587375,1782636633000,-391.76,0.00019355,7]
[426587371,1782636633000,-350.0,0.00018,2]
[426587367,1782636633000,-631.36942605,0.00017667,2]
[426587365,1782636633000,-500.0,0.0001737,2]
[426587379,1782636633000,-400.0,0.0002,2]
[426587376,1782636633000,-630.70355717,0.00019677,2]
[426587378,1782636633000,-169.13691094,0.0002,2]
[426587377,1782636633000,-210.12,0.00019875,2]
[426587387,1782636633000,-200.0,0.00020362,2]
[426587380,1782636633000,-265.0,0.0002,2]
[426587362,1782636633000,-500.0,0.00017096,2]
[426587373,1782636633000,-176.07,0.00018529,2]
[426587363,1782636633000,-500.0,0.00017096,2]
[426587338,1782636633000,-500.0,0.00016438,2]
[426587353,1782636633000,-500.0,0.00016438,2]
[426587328,1782636633000,-500.0,0.00016438,2]
[426587324,1782636633000,-500.0,0.00016438,2]
[426587327,1782636633000,-500.0,0.00016438,2]
[426587325,1782636633000,-500.0,0.00016438,2]
[426587326,1782636633000,-500.0,0.00016438,2]
[426587330,1782636633000,-500.0,0.00016438,2]
[426587340,1782636633000,-500.0,0.00016438,2]
[426587339,1782636633000,-500.0,0.00016438,2]
[426587329,1782636633000,-500.0,0.00016438,2]
[426587331,1782636633000,-500.0,0.00016438,2]
[426587332,1782636633000,-500.0,0.00016438,2]
[426587333,1782636633000,-500.0,0.00016438,2]
[426587335,1782636633000,-500.0,0.00016438,2]
[426587337,1782636633000,-500.0,0.00016438,2]
[426587334,1782636633000,-500.0,0.00016438,2]
[426587336,1782636633000,-500.0,0.00016438,2]
[426587341,1782636633000,-500.0,0.00016438,2]
[426587343,1782636633000,-500.0,0.00016438,2]
[426587342,1782636633000,-500.0,0.00016438,2]
[426587345,1782636633000,-500.0,0.00016438,2]
[426587344,1782636633000,-500.0,0.00016438,2]
[426587347,1782636633000,-441.20508401,0.00016438,2]
[426587351,1782636633000,-500.0,0.00016438,2]
[426587346,1782636633000,-500.0,0.00016438,2]
[426587348,1782636633000,-500.0,0.00016438,2]
[426587349,1782636633000,-500.0,0.00016438,2]
[426587350,1782636633000,-500.0,0.00016438,2]
[426587352,1782636633000,-500.0,0.00016438,2]
[426587385,1782636633000,-2245.69,0.0002,2]
[426587370,1782636633000,-887.0,0.00017948,2]
[426587386,1782636633000,-2840.19,0.00020027,2]
[426587419,1782636633000,-161.0,0.00021,2]
[426587426,1782636633000,-265.0,0.00022,2]
[426587416,1782636633000,-631.36942605,0.0002093,2]
[426587425,1782636633000,-450.0,0.00022,2]
[426587421,1782636633000,-517.0,0.00021,2]
[426587418,1782636633000,-273.0,0.00021,2]
[426587422,1782636633000,-150.0,0.00021003,2]
[426587423,1782636633000,-1290.64,0.00021273,2]
[426587428,1782636633000,-161.0,0.00022,2]
[426587438,1782636633000,-250.46,0.00022947,2]
[426587432,1782636633000,-320.77,0.00022466,2]
[426587427,1782636633000,-273.0,0.00022,2]
[426587429,1782636633000,-156.0,0.00022,2]
[426587431,1782636633000,-182.61,0.00022466,2]
[426587430,1782636633000,-517.0,0.00022,2]
[426587433,1782636633000,-1551.77,0.00022466,2]
[426587435,1782636633000,-379.81,0.00022609,2]
[426587437,1782636633000,-715.42,0.0002274,2]
[426587434,1782636633000,-200.0,0.00022489,2]
[426587436,1782636633000,-5000.0,0.00022645,2]
[426587439,1782636633000,-265.0,0.00023,2]
[426587440,1782636633000,-273.0,0.00023,2]
[426587443,1782636633000,-1405.95,0.00023154,7]
[426587441,1782636633000,-161.0,0.00023,2]
[426587445,1782636633000,-1615.06020486,0.00023625,2]
[426587444,1782636633000,-770.72389731,0.00023625,2]
[426587442,1782636633000,-517.0,0.00023,2]
[426587420,1782636633000,-155.0,0.00021,2]
[426587417,1782636633000,-265.0,0.00021,2]
[426587383,1782636633000,-155.0,0.0002,2]
[426587424,1782636633000,-1772.85,0.00021577,2]
[426587414,1782636633000,-151.0,0.00020913,2]
[426587384,1782636633000,-517.0,0.0002,2]
[426587388,1782636633000,-150.0,0.0002058,2]
[426587391,1782636633000,-150.0,0.0002058,2]
[426587395,1782636633000,-1615.06020486,0.00020901,2]
[426587394,1782636633000,-770.72389731,0.00020901,2]
[426587392,1782636633000,-150.0,0.0002058,2]
[426587389,1782636633000,-150.0,0.0002058,2]
[426587393,1782636633000,-869.27,0.00020762,2]
[426587397,1782636633000,-151.0,0.00020913,2]
[426587396,1782636633000,-151.0,0.00020913,2]
[426587398,1782636633000,-151.0,0.00020913,2]
[426587399,1782636633000,-151.0,0.00020913,2]
[426587401,1782636633000,-151.0,0.00020913,2]
[426587390,1782636633000,-150.0,0.0002058,2]
[426587411,1782636633000,-151.0,0.00020913,2]
[426587402,1782636633000,-151.0,0.00020913,2]
[426587415,1782636633000,-151.0,0.00020913,2]
[426587413,1782636633000,-151.0,0.00020913,2]
[426587405,1782636633000,-151.0,0.00020913,2]
[426587407,1782636633000,-151.0,0.00020913,2]
[426587406,1782636633000,-151.0,0.00020913,2]
[426587408,1782636633000,-151.0,0.00020913,2]
[426587410,1782636633000,-151.0,0.00020913,2]
[426587404,1782636633000,-151.0,0.00020913,2]
[426587400,1782636633000,-151.0,0.00020913,2]
[426587403,1782636633000,-151.0,0.00020913,2]
[426587412,1782636633000,-151.0,0.00020913,2]
[426587409,1782636633000,-151.0,0.00020913,2]
[426587468,1782636634000,-1000.0,0.00025458,2]
[426587481,1782636634000,-234.71187082,0.00025829,2]
[426587470,1782636634000,-560.58,0.00025627,2]
[426587479,1782636634000,-106.0204606,0.00025829,2]
[426587478,1782636634000,-90.38068667,0.00025829,2]
[426587474,1782636634000,-172.24599261,0.00025829,2]
[426587476,1782636634000,-237.64905907,0.00025829,2]
[426587477,1782636634000,-245.6898113,0.00025829,2]
[426587475,1782636634000,-214.02296363,0.00025829,2]
[426587491,1782636634000,-588.9463729,0.00026349,2]
[426587488,1782636634000,-529.04,0.00026308,7]
[426587482,1782636634000,-160.09426811,0.00025829,2]
[426587480,1782636634000,-167.28590334,0.00025829,2]
[426587483,1782636634000,-216.0,0.00025947,2]
[426587485,1782636634000,-166.66,0.00026211,30]
[426587486,1782636634000,-3.1655839,0.00026287,2]
[426587489,1782636634000,-326.54741747,0.00026349,2]
[426587490,1782636634000,-444.17647984,0.00026349,2]
[426587487,1782636634000,-267.7044161,0.00026287,2]
[426587471,1782636634000,-500.0,0.00025671,2]
[426587492,1782636634000,-504.95050947,0.00026349,2]
[426587472,1782636634000,-180.58,0.00025675,7]
[426587465,1782636634000,-409.0,0.00025316,2]
[426587473,1782636634000,-150.15622716,0.00025827,2]
[426587446,1782636634000,-265.0,0.00024,2]
[426587452,1782636634000,-13927.21,0.00024174,2]
[426587450,1782636634000,-280.67,0.0002411,2]
[426587451,1782636634000,-500.0,0.00024173,2]
[426587448,1782636634000,-161.0,0.00024,2]
[426587447,1782636634000,-273.0,0.00024,2]
[426587449,1782636634000,-517.0,0.00024,2]
[426587454,1782636634000,-467.3153287,0.00024657,2]
[426587466,1782636634000,-412.0,0.00025316,2]
[426587493,1782636634000,-521.16332249,0.00026349,2]
[426587467,1782636634000,-216.54711319,0.0002535,2]
[426587464,1782636634000,-150.0,0.00025316,2]
[426587462,1782636634000,-221.94,0.00025018,7]
[426587455,1782636634000,-221.92,0.00024658,2]
[426587456,1782636634000,-848.33,0.00024731,7]
[426587457,1782636634000,-2388.51,0.00024778,2]
[426587458,1782636634000,-272.0,0.00025,2]
[426587460,1782636634000,-164.0,0.00025,2]
[426587459,1782636634000,-277.0,0.00025,2]
[426587461,1782636634000,-524.0,0.00025,2]
[426587463,1782636634000,-221.92,0.00025018,7]
[426587469,1782636634000,-715.42,0.00025582,2]
[426587453,1782636634000,-631.36942605,0.00024193,2]
[426587497,1782636634000,-223.69677147,0.00026386,2]
[426587484,1782636634000,-200.48,0.00026027,7]
[426587495,1782636634000,-316.48493745,0.00026386,2]
[426587528,1782636634000,-439.11424929,0.0002639,2]
[426587523,1782636634000,-344.49198522,0.0002639,2]
[426587519,1782636634000,-334.57180667,0.0002639,2]
[426587526,1782636634000,-222.0883925,0.0002639,2]
[426587522,1782636634000,-346.60077723,0.0002639,2]
[426587525,1782636634000,-204.58016172,0.0002639,2]
[426587530,1782636634000,-226.55725519,0.0002639,2]
[426587529,1782636634000,-325.74511683,0.0002639,2]
[426587532,1782636634000,-233.44564094,0.0002639,2]
[426587542,1782636634000,-149.21701229,0.00027457,2]
[426587531,1782636634000,-252.7081034,0.0002639,2]
[426587533,1782636634000,-269.84938978,0.0002639,2]
[426587535,1782636634000,-401.84421029,0.0002639,2]
[426587534,1782636634000,-167.68455702,0.0002639,2]
[426587536,1782636634000,-434.23610496,0.0002639,2]
[426587538,1782636634000,-184.49,0.00026943,2]
[426587541,1782636634000,-452.28,0.00027397,10]
[426587496,1782636634000,-347.06442864,0.00026386,2]
[426587539,1782636634000,-270.87,0.00026944,2]
[426587540,1782636634000,-166.66,0.00027314,30]
[426587543,1782636634000,-314.62729366,0.00027457,2]
[426587524,1782636634000,-259.0697969,0.0002639,2]
[426587527,1782636634000,-392.80229455,0.0002639,2]
[426587537,1782636634000,-166.66,0.00026762,30]
[426587521,1782636634000,-257.23199107,0.0002639,2]
[426587518,1782636634000,-171.15317721,0.0002639,2]
[426587494,1782636634000,-236.51824138,0.00026386,2]
[426587498,1782636634000,-272.21103835,0.00026386,2]
[426587501,1782636634000,-350.56406896,0.00026387,2]
[426587502,1782636634000,-212.99653461,0.00026387,2]
[426587503,1782636634000,-343.82761445,0.00026387,2]
[426587499,1782636634000,-448.58581344,0.00026386,2]
[426587504,1782636634000,-300.31245431,0.00026387,2]